bitfinex-derivatives/quotes_SOLF0:USTF0_20241226
["timestamp","ask_amount","ask_price","bid_price","bid_amount"]
[1735175057760,3.6,197.8,197.68,4.70853697]
[1735175058164,3.6,197.8,197.69,4.70853697]
[1735175058458,2.53,197.77,197.7,4.70853697]
[1735175058666,3.6,197.8,197.7,4.70853697]
[1735175059067,3.6,197.8,197.67,5.6135]
[1735175059371,2.5306,197.73,197.68,4.70999449]
[1735175059668,2.5306,197.73,197.69,4.70999449]
[1735175060070,3.6,197.8,197.7,4.70999449]
[1735175060470,3.6,197.8,197.67,3.0822]
[1735175060674,21.60170243,197.82,197.7,2.5309]
[1735175060870,2.5302,197.76,197.68,4.70912118]
[1735175061075,2.5302,197.76,197.69,4.70912118]
[1735175061369,2.5305,197.74,197.69,4.70912118]
[1735175061572,3.6,197.81,197.7,4.70912118]
[1735175061768,3.6,197.81,197.72,2.5307]
[1735175061969,2.5298,197.79,197.73,4.70912118]
[1735175062372,2.5298,197.79,197.74,4.70912118]
[1735175062568,2.5296,197.81,197.75,4.70912118]
[1735175062967,2.5296,197.81,197.72,1.6153]
[1735175062968,2.5296,197.81,197.76,4.70912118]
[1735175063173,2.5298,197.79,197.76,4.70912118]
[1735175063374,2.5298,197.79,197.77,4.70912118]
[1735175063773,2.5298,197.79,197.72,1.6153]
[1735175064072,2.5298,197.79,197.73,4.7095381]
[1735175064272,52.6,197.85,197.73,4.7095381]
[1735175064273,3.6,197.84,197.73,4.7095381]
[1735175064475,3.6,197.84,197.74,4.7095381]
[1735175064666,3.6,197.87,197.75,4.7095381]
[1735175065175,3.6,197.87,197.76,4.7095381]
[1735175065375,2.5293,197.83,197.78,2.5298]
[1735175065566,3.6,197.87,197.77,7.8937381]
[1735175066075,3.6,197.87,197.78,4.7095381]
[1735175066576,21.60170243,197.9,197.79,4.7095381]
[1735175066780,3.6,197.89,197.77,3.1842]
[1735175067182,2.5294,197.82,197.78,4.70999172]
[1735175067374,2.5294,197.82,197.79,4.70999172]
[1735175067775,2.5294,197.82,197.77,3.1842]
[1735175067976,3.6,197.88,197.77,3.1842]
[1735175068175,3.6,197.88,197.78,4.71015448]
[1735175068684,3.6,197.88,197.77,3.1842]
[1735175069177,21.60170243,197.94,197.77,3.1842]
[1735175069382,2.5287,197.88,197.78,4.70986812]
[1735175069574,3.6,197.93,197.81,2.5294]
[1735175069974,3.6,197.93,197.82,4.70986812]
[1735175070175,52.62,197.99,197.83,4.70986812]
[1735175070482,3.6,197.98,197.84,1.5616]
[1735175070683,3.6,197.98,197.84,6.27146812]
[1735175070883,3.6,197.98,197.85,4.70986812]
[1735175071177,3.6,197.98,197.84,1.5616]
[1735175071178,3.6,197.98,197.86,4.70986812]
[1735175071377,3.6,197.98,197.87,3.0759]
[1735175071579,2.5279,197.94,197.88,7.23846812]
[1735175071777,2.5279,197.94,197.88,4.70986812]
[1735175071978,2.5279,197.94,197.87,3.0759]
[1735175072485,2.528,197.93,197.88,4.70291764]
[1735175072685,2.528,197.93,197.87,3.0759]
[1735175073280,2.528,197.93,197.88,4.7021917]
[1735175073482,2.528,197.93,197.87,5.6046]
[1735175073679,2.5283,197.91,197.87,3.0759]
[1735175073884,3.6,197.98,197.87,3.0759]
[1735175074787,25.20170243,197.98,197.87,1.5389]
[1735175074986,2.5284,197.9,197.87,1.5389]
[1735175079985,2.5282,197.91,197.87,1.5389]
[1735175080284,3.6,197.92,197.87,1.5389]
[1735175080688,3.6,197.92,197.84,1.5616]
[1735175081682,3.6,197.92,197.82,1.6067]
[1735175081888,2.5287,197.88,197.82,4.136]
[1735175082288,3.6,197.92,197.82,1.6067]
[1735175082683,3.6,197.92,197.81,4.69644329]
[1735175082884,21.60170243,197.9,197.78,4.69644329]
[1735175083085,2.5297,197.8,197.77,1.5603]
[1735175083985,3.6,197.83,197.77,1.5603]
[1735175084186,3.6,197.83,197.74,1.612]
[1735175085390,3.6,197.83,197.74,6.31061737]
[1735175085794,3.6,197.83,197.74,1.612]
[1735175086494,3.6,197.83,197.72,1.5603]
[1735175086693,3.6,197.83,197.73,4.69975145]
[1735175087090,3.6,197.83,197.72,1.5603]
[1735175087490,2.5304,197.75,197.72,1.5603]
[1735175087694,3.46,197.77,197.7,4.69975145]
[1735175087989,2.5312,197.68,197.6,3.1473]
[1735175088293,3.46,197.69,197.6,3.1473]
[1735175088592,21.60170243,197.74,197.6,3.1473]
[1735175088593,3.46,197.7,197.61,4.69975145]
[1735175088796,3.46,197.7,197.6,3.1473]
[1735175088797,5.991,197.7,197.63,4.69975145]
[1735175088997,3.46,197.7,197.63,4.69975145]
[1735175089191,3.46,197.7,197.62,4.0344]
[1735175090492,2.5314,197.67,197.62,1.5026]
[1735175090996,3.46,197.7,197.62,1.5026]
[1735175091890,2.5314,197.67,197.62,1.5026]
[1735175093593,2.5315,197.66,197.62,1.5026]
[1735175093888,3.46,197.7,197.62,1.5026]
[1735175094497,3.46,197.7,197.63,4.69694532]
[1735175094693,3.46,197.7,197.62,1.5026]
[1735175095201,3.46,197.7,197.61,4.699353]
[1735175095393,3.46,197.7,197.6,3.1473]
[1735175095802,3.46,197.7,197.56,1.5794]
[1735175096001,25.06170243,197.7,197.56,1.5794]
[1735175096396,25.06170243,197.7,197.57,4.69999254]
[1735175096798,25.06170243,197.7,197.58,4.69999254]
[1735175097196,25.06170243,197.7,197.57,4.69999254]
[1735175097399,2.532,197.62,197.56,1.5794]
[1735175097601,3.46,197.64,197.56,1.5794]
[1735175097904,3.46,197.63,197.55,3.1353]
[1735175098100,3.46,197.62,197.55,5.6682]
[1735175098306,3.46,197.63,197.56,4.69940289]
[1735175098499,3.46,197.63,197.57,4.69940289]
[1735175098700,2.532,197.62,197.55,5.6682]
[1735175099004,2.532,197.62,197.56,4.69907012]
[1735175099203,2.532,197.62,197.57,4.69907012]
[1735175099403,2.532,197.62,197.55,5.6682]
[1735175099604,2.5321,197.61,197.55,5.6682]
[1735175099806,2.5321,197.61,197.56,4.69868979]
[1735175100103,21.60170243,197.74,197.56,4.69868979]
[1735175100307,16.98750587,197.73,197.58,13.52750587]
[1735175100508,16.98750587,197.73,197.59,4.69868979]
[1735175100806,2.5315,197.66,197.6,7.23078979]
[1735175101303,2.5319,197.63,197.56,2.5326]
[1735175101607,3.46,197.66,197.59,4.69909333]
[1735175101802,3.46,197.66,197.57,4.69909333]
[1735175102201,3.46,197.66,197.58,4.69909333]
[1735175102607,3.46,197.66,197.6,2.5321]
[1735175102810,13.52750587,197.73,197.59,4.69909333]
[1735175103010,3.46,197.72,197.65,2.5316]
[1735175103309,3.46,197.74,197.66,4.69909333]
[1735175103509,3.46,197.75,197.69,2.531]
[1735175103812,3.46,197.75,197.65,3.1303]
[1735175104006,3.46,197.75,197.66,4.69492727]
[1735175104204,2.5307,197.73,197.67,2.5312]
[1735175104510,3.46,197.75,197.68,4.69492727]
[1735175104808,3.46,197.75,197.69,4.69492727]
[1735175105310,2.5304,197.74,197.68,2.5311]
[1735175105809,2.5304,197.74,197.65,3.1303]
[1735175105810,3.46,197.77,197.69,4.69484374]
[1735175106012,2.5302,197.77,197.71,2.5307]
[1735175106206,2.5302,197.77,197.71,7.22554374]
[1735175106404,16.98750587,197.79,197.71,4.69484374]
[1735175106606,2.5302,197.76,197.7,2.5309]
[1735175106910,3.46,197.77,197.67,4.69484374]
[1735175107304,3.46,197.77,197.68,4.69484374]
[1735175107501,3.46,197.77,197.69,2.531]
[1735175107502,2.5303,197.76,197.69,2.531]
[1735175108105,2.5303,197.75,197.69,2.531]
[1735175108805,5.9901,197.77,197.71,2.5308]
[1735175109514,5.9901,197.77,197.71,7.22564374]
[1735175109812,3.46,197.77,197.71,4.69484374]
[1735175110012,2.5299,197.79,197.72,2.5306]
[1735175110313,2.5299,197.79,197.69,4.69484374]
[1735175110513,2.5299,197.79,197.73,2.5304]
[1735175110813,2.5296,197.81,197.71,13.52750587]
[1735175111008,2.5296,197.81,197.71,19.79504961]
[1735175111404,2.5296,197.81,197.72,4.69484374]
[1735175111609,13.52750587,197.88,197.74,13.52750587]
[1735175111811,3.46,197.87,197.75,3.2082]
[1735175112608,2.5291,197.85,197.78,2.5299]
[1735175113107,3.46,197.87,197.76,4.69352329]
[1735175114514,2.529,197.85,197.79,2.5298]
[1735175114717,13.52750587,197.94,197.8,13.52750587]
[1735175114909,3.46,197.92,197.8,13.52750587]
[1735175115217,2.5284,197.9,197.84,2.5291]
[1735175116618,2.528,197.93,197.86,2.5288]
[1735175117310,3.4,197.96,197.85,3.1516]
[1735175117509,3.4,197.96,197.86,4.69352329]
[1735175117920,13.52750587,198.0,197.86,4.69352329]
[1735175118216,3.4,197.99,197.87,4.69352329]
[1735175118414,2.5276,197.97,197.88,2.5286]
[1735175118620,3.4,197.98,197.88,7.22212329]
[1735175118819,13.52750587,198.0,197.88,2.5286]
[1735175119018,2.5277,197.96,197.88,2.5286]
[1735175119215,3.4,197.99,197.86,13.52750587]
[1735175119420,3.4,197.99,197.85,3.1516]
[1735175119617,2.5282,197.92,197.85,3.1516]
[1735175119810,3.4,197.93,197.86,4.69364268]
[1735175120014,13.52750587,197.97,197.85,3.1516]
[1735175120015,3.4,197.92,197.85,3.1516]
[1735175120318,3.4,197.92,197.85,5.6806]
[1735175120518,3.4,197.92,197.85,3.1516]
[1735175120918,2.5286,197.89,197.85,3.1516]
[1735175122014,2.5287,197.88,197.85,3.1516]
[1735175122615,3.4,197.92,197.81,1.569]
[1735175122809,13.52750587,197.91,197.79,3.073]
[1735175123009,2.5291,197.84,197.79,3.073]
[1735175123212,13.52750587,197.91,197.79,3.073]
[1735175123412,3.4,197.92,197.79,3.073]
[1735175123413,13.52750587,197.88,197.79,3.073]
[1735175124620,2.5293,197.83,197.79,3.073]
[1735175125020,3.4,197.85,197.79,3.073]
[1735175125320,2.5294,197.82,197.79,3.073]
[1735175127419,3.4,197.85,197.79,3.073]
[1735175127722,16.92750587,197.85,197.75,4.70078154]
[1735175127920,16.92750587,197.85,197.71,19.22570587]
[1735175128218,2.53,197.78,197.72,4.70205242]
[1735175128412,3.4,197.79,197.72,4.70205242]
[1735175128619,3.4,197.79,197.73,4.70205242]
[1735175128813,3.4,197.79,197.71,3.1674]
[1735175129023,3.4,197.83,197.71,16.69490587]
[1735175129219,3.4,197.84,197.74,13.52750587]
[1735175129415,3.4,197.88,197.77,13.52750587]
[1735175129616,66.10750587,197.91,197.78,4.70081262]
[1735175129923,3.4,197.89,197.79,4.70081262]
[1735175130219,2.529,197.86,197.79,2.5298]
[1735175130723,2.5291,197.85,197.79,2.5298]
[1735175130921,3.4,197.89,197.74,13.52750587]
[1735175131224,3.4,197.89,197.75,4.70060568]
[1735175131719,2.5292,197.84,197.78,2.5298]
[1735175132119,2.5292,197.84,197.79,4.70060568]
[1735175132517,3.4,197.89,197.79,4.70060568]
[1735175132724,2.5293,197.83,197.8,4.70060568]
[1735175132920,2.5293,197.83,197.79,4.70060568]
[1735175133424,2.5293,197.83,197.8,4.70060568]
[1735175133624,2.5293,197.83,197.78,2.5298]
[1735175133825,2.5293,197.83,197.79,4.69974496]
[1735175134029,2.5293,197.83,197.78,2.5298]
[1735175134417,3.4,197.82,197.71,3.1674]
[1735175134617,3.4,197.81,197.72,4.70102748]
[1735175135023,3.4,197.81,197.73,4.70102748]
[1735175135231,3.4,197.81,197.71,3.1674]
[1735175136527,3.4,197.81,197.72,4.70359556]
[1735175136723,3.4,197.81,197.71,3.1674]
[1735175137127,2.53,197.78,197.72,2.5306]
[1735175137325,2.53,197.78,197.73,4.70478646]
[1735175137625,2.53,197.78,197.74,4.70478646]
[1735175137825,3.4,197.81,197.71,3.1674]
[1735175138027,2.5301,197.77,197.71,5.6982]
[1735175138228,2.5301,197.77,197.72,4.70639034]
[1735175138628,2.5301,197.77,197.71,5.6982]
[1735175139226,2.5301,197.77,197.72,4.70708206]
[1735175139628,2.5301,197.77,197.71,5.6982]
[1735175139629,2.5301,197.77,197.73,4.70708206]
[1735175139928,2.5301,197.77,197.71,5.6982]
[1735175140332,2.5301,197.77,197.72,4.70826034]
[1735175140621,2.5301,197.77,197.73,4.70826034]
[1735175141027,2.5301,197.77,197.74,4.70826034]
[1735175141424,2.5301,197.77,197.71,5.6982]
[1735175141821,2.5301,197.77,197.72,4.71295686]
[1735175142032,2.5301,197.77,197.73,4.71295686]
[1735175142227,2.5301,197.77,197.74,4.71295686]
[1735175142428,2.5301,197.77,197.75,4.71295686]
[1735175142731,2.5301,197.77,197.71,5.6982]
[1735175142932,2.5301,197.77,197.72,4.71607765]
[1735175143130,2.5305,197.74,197.73,4.71607765]
[1735175143636,16.92750587,197.81,197.73,4.71607765]
[1735175143832,2.5303,197.76,197.71,3.1674]
[1735175144232,2.5303,197.76,197.72,4.71939355]
[1735175144429,16.92750587,197.81,197.73,4.71939355]
[1735175144633,3.4,197.81,197.73,4.71939355]
[1735175144935,3.4,197.81,197.74,4.71939355]
[1735175145135,3.4,197.81,197.75,4.71939355]
[1735175145326,13.52750587,197.84,197.75,4.71939355]
[1735175145531,3.4,197.84,197.76,4.71939355]
[1735175145931,2.5294,197.82,197.77,4.71939355]
[1735175146126,2.5294,197.82,197.78,4.71939355]
[1735175146333,13.52750587,197.87,197.78,4.71939355]
[1735175146531,3.32,197.86,197.79,4.71939355]
[1735175146727,2.5293,197.84,197.8,4.71939355]
[1735175146936,3.32,197.86,197.8,4.71939355]
[1735175147135,3.32,197.86,197.81,4.71939355]
[1735175147437,2.5292,197.84,197.82,4.71939355]
[1735175147634,3.32,197.86,197.83,4.71939355]
[1735175147838,3.32,197.88,197.83,4.71939355]
[1735175148034,2.5289,197.87,197.84,4.71939355]
[1735175148236,2.5289,197.87,197.8,2.5296]
[1735175148537,2.5289,197.87,197.81,4.7292634]
[1735175148731,2.5293,197.83,197.81,4.7292634]
[1735175148939,5.8493,197.83,197.82,4.7292634]
[1735175149342,2.53,197.78,197.72,2.5307]
[1735175149541,2.53,197.78,197.73,6.96835015]
[1735175149837,2.53,197.78,197.73,11.69999049]
[1735175150337,2.53,197.78,197.74,4.73164034]
[1735175150540,2.53,197.78,197.75,4.73164034]
[1735175150938,2.53,197.78,197.76,4.73164034]
[1735175151236,2.53,197.78,197.77,4.73164034]
[1735175153934,3.32,197.83,197.77,4.73164034]
[1735175154136,13.52750587,197.87,197.73,13.52750587]
[1735175154342,3.32,197.87,197.74,3.32]
[1735175154637,3.32,197.87,197.78,2.5298]
[1735175155135,3.32,197.87,197.79,4.73406606]
[1735175155340,3.32,197.87,197.8,4.73406606]
[1735175155641,2.529,197.85,197.81,4.73406606]
[1735175155841,2.529,197.85,197.82,4.73406606]
[1735175156141,2.529,197.85,197.83,4.73406606]
[1735175156536,2.529,197.85,197.78,2.5298]
[1735175156537,2.529,197.85,197.76,13.52750587]
[1735175156740,2.529,197.85,197.84,4.73386452]
[1735175157131,15.58194066,197.93,197.84,4.73386452]
[1735175157336,2.5288,197.87,197.84,4.73386452]
[1735175157739,2.5288,197.87,197.85,4.73386452]
[1735175157940,3.32,197.92,197.85,4.73386452]
[1735175158138,3.32,197.92,197.86,4.73386452]
[1735175158339,3.32,197.92,197.81,3.2112]
[1735175158741,2.5291,197.85,197.82,4.73309557]
[1735175158940,3.32,197.92,197.83,4.73309557]
[1735175159142,2.5296,197.81,197.77,3.1452]
[1735175159334,2.05443479,197.93,197.77,3.1452]
[1735175159335,3.32,197.86,197.77,3.1452]
[1735175159537,3.32,197.86,197.78,4.7338934]
[1735175159841,2.5296,197.81,197.78,4.7338934]
[1735175160035,2.5296,197.81,197.79,4.7338934]
[1735175160243,2.5296,197.81,197.8,4.7338934]
[1735175161844,3.32,197.86,197.8,4.7338934]
[1735175162046,15.58194066,197.93,197.8,4.7338934]
[1735175162346,2.5287,197.88,197.82,2.5293]
[1735175162543,3.32,197.92,197.83,4.7338934]
[1735175162945,2.529,197.85,197.84,4.7338934]
[1735175163147,13.52750587,197.9,197.84,4.7338934]
[1735175163447,13.52750587,197.9,197.81,1.6376]
[1735175163448,2.5293,197.83,197.81,1.6376]
[1735175163948,2.5293,197.83,197.82,4.73895302]
[1735175164840,2.5297,197.8,197.77,3.1452]
[1735175165245,2.5297,197.8,197.78,4.74183338]
[1735175165751,2.5297,197.8,197.79,4.74183338]
[1735175166150,5.8497,197.8,197.79,4.74183338]
[1735175166351,2.5305,197.74,197.72,3.1413]
[1735175166652,2.5305,197.74,197.73,4.74463604]
[1735175168355,5.8505,197.74,197.73,4.74463604]
[1735175168748,2.5314,197.67,197.65,3.0631]
[1735175168952,3.32,197.74,197.65,3.0631]
[1735175169157,3.32,197.74,197.66,4.74326469]
[1735175169366,2.5307,197.72,197.67,4.74326469]
[1735175169656,3.32,197.74,197.67,4.74326469]
[1735175169852,2.5311,197.69,197.65,3.0631]
[1735175170057,3.32,197.74,197.66,4.73981737]
[1735175170359,3.32,197.75,197.66,4.73981737]
[1735175170559,2.5308,197.71,197.67,4.73981737]
[1735175170758,3.32,197.75,197.67,4.73981737]
[1735175170956,3.32,197.75,197.68,4.73981737]
[1735175171156,21.63201297,197.7,197.69,4.73981737]
[1735175171356,21.63201297,197.7,197.58,6.96835015]
[1735175171559,24.95201297,197.7,197.58,6.96835015]
[1735175172059,24.95201297,197.7,197.53,3.2087]
[1735175172459,2.532,197.62,197.54,2.533]
[1735175173762,3.32,197.68,197.54,3.32]
[1735175174259,2.5317,197.64,197.56,2.5326]
[1735175174661,2.5317,197.64,197.55,21.63201297]
[1735175175058,3.32,197.68,197.54,3.32]
[1735175175265,2.5318,197.63,197.57,2.5326]
[1735175178160,2.532,197.62,197.57,2.5326]
[1735175179466,2.5315,197.66,197.6,2.5321]
[1735175179669,3.36,197.71,197.61,1.5528]
[1735175179861,1.0,197.74,197.62,1.5441]
[1735175180067,3.36,197.72,197.62,3.1015]
[1735175180466,21.63201297,197.78,197.62,3.1015]
[1735175180665,3.36,197.77,197.62,24.73351297]
[1735175180968,3.36,197.78,197.62,24.73351297]
[1735175181159,2.5305,197.74,197.68,2.5311]
[1735175181567,2.5305,197.74,197.66,24.99201297]
[1735175181767,3.36,197.79,197.66,24.99201297]
[1735175182467,3.36,197.79,197.58,6.96835015]
[1735175182668,3.36,197.79,197.63,1.5251]
[1735175182875,3.36,197.79,197.64,2.5316]
[1735175183067,2.5309,197.71,197.63,1.5251]
[1735175183571,2.531,197.7,197.65,2.5315]
[1735175183871,3.36,197.73,197.63,1.5251]
[1735175184263,2.5308,197.72,197.66,2.5313]
[1735175184462,2.5308,197.72,197.63,1.5251]
[1735175184662,3.36,197.75,197.63,23.15711297]
[1735175184865,3.36,197.75,197.68,2.5312]
[1735175185771,3.36,197.75,197.69,2.5311]
[1735175186165,5.8903,197.75,197.69,2.5311]
[1735175186368,21.63201297,197.82,197.63,23.15711297]
[1735175186568,3.36,197.81,197.63,23.15711297]
[1735175186868,3.36,197.81,197.72,2.5306]
[1735175187573,2.5298,197.79,197.72,2.5306]
[1735175187773,2.5298,197.79,197.73,2.5305]
[1735175188264,2.5307,197.73,197.66,2.5313]
[1735175188469,3.36,197.8,197.66,2.5313]
[1735175188667,3.36,197.8,197.63,1.5251]
[1735175188871,2.5312,197.69,197.63,1.5251]
[1735175189062,3.36,197.72,197.63,1.5251]
[1735175189470,2.5317,197.65,197.62,27.87340061]
[1735175189668,3.36,197.72,197.62,27.87340061]
[1735175190265,21.63201297,197.69,197.59,1.6284]
[1735175191372,2.5319,197.63,197.59,1.6284]
[1735175193470,3.36,197.65,197.59,1.6284]
[1735175193471,2.5322,197.6,197.59,1.6284]
[1735175193773,2.5322,197.6,197.57,1.5029]
[1735175195177,2.5322,197.6,197.55,1.6136]
[1735175195868,2.5322,197.6,197.55,4.1464]
[1735175196070,21.63201297,197.69,197.55,1.6136]
[1735175196266,3.36,197.68,197.55,1.6136]
[1735175196470,21.63201297,197.65,197.55,1.6136]
[1735175196874,2.5324,197.59,197.55,1.6136]
[1735175197674,3.36,197.61,197.55,1.6136]
[1735175197875,3.36,197.65,197.55,1.6136]
[1735175198878,5.8917,197.65,197.59,2.5322]
[1735175199070,3.36,197.68,197.55,1.6136]
[1735175199477,2.5314,197.67,197.6,2.5321]
[1735175199977,2.5315,197.66,197.6,2.5321]
[1735175200382,2.5315,197.66,197.61,2.5321]
[1735175200583,21.63201297,197.78,197.57,21.63201297]
[1735175200584,2.5312,197.69,197.57,21.63201297]
[1735175200983,2.5312,197.68,197.62,2.5319]
[1735175201184,2.5312,197.68,197.63,1.6013]
[1735175201782,2.5312,197.68,197.63,4.1331]
[1735175203879,3.36,197.72,197.63,4.1331]
[1735175204086,3.36,197.73,197.65,2.5315]
[1735175204883,2.5308,197.71,197.65,2.5315]
[1735175206080,2.5308,197.71,197.64,1.6462]
[1735175206279,21.63201297,197.78,197.64,1.6462]
[1735175206483,3.36,197.77,197.64,1.6462]
[1735175206684,3.36,197.77,197.65,2.5316]
[1735175206882,2.5309,197.7,197.65,2.5316]
[1735175207283,2.5306,197.73,197.67,2.5312]
[1735175207488,3.36,197.77,197.64,1.6462]
[1735175207987,3.36,197.77,197.65,2.5315]
[1735175208387,3.36,197.77,197.64,1.6462]
[1735175208692,2.5308,197.72,197.66,2.5314]
[1735175209490,2.5308,197.71,197.66,2.5314]
[1735175212393,2.531,197.7,197.65,2.5316]
[1735175219000,13.52165502,197.76,197.65,2.5316]
[1735175219594,13.52165502,197.76,197.66,2.5314]
[1735175219595,2.5309,197.71,197.66,2.5314]
[1735175221801,2.5309,197.7,197.66,2.5314]
[1735175222894,13.52165502,197.76,197.66,2.5314]
[1735175223101,3.34,197.79,197.64,1.6462]
[1735175223299,3.34,197.79,197.66,13.52165502]
[1735175223498,2.5308,197.72,197.67,2.5313]
[1735175223697,13.52165502,197.77,197.64,1.6462]
[1735175224296,2.5311,197.69,197.64,4.1778]
[1735175226696,2.5311,197.69,197.64,1.6462]
[1735175226904,2.5311,197.69,197.65,2.5315]
[1735175227701,2.05562401,197.82,197.64,1.6462]
[1735175227904,16.86165502,197.81,197.66,13.52165502]
[1735175228401,2.5303,197.76,197.66,13.52165502]
[1735175228796,2.5303,197.76,197.66,16.86165502]
[1735175229397,2.5303,197.76,197.72,2.5306]
[1735175229799,2.5298,197.79,197.69,13.52165502]
[1735175229998,2.5298,197.79,197.7,1.5858]
[1735175230305,2.5298,197.79,197.74,2.5303]
[1735175230702,2.5298,197.79,197.75,2.5303]
[1735175230902,2.5297,197.8,197.75,2.5303]
[1735175231404,13.52165502,197.84,197.76,2.5301]
[1735175231405,3.34,197.82,197.76,2.5301]
[1735175231904,13.52165502,197.84,197.76,2.5301]
[1735175232308,3.34,197.83,197.76,2.5301]
[1735175232505,3.34,197.85,197.73,3.34]
[1735175232699,3.34,197.85,197.75,13.52165502]
[1735175232905,52.62,197.89,197.75,13.52165502]
[1735175232906,2.5286,197.88,197.79,2.5298]
[1735175233104,2.5286,197.88,197.75,13.52165502]
[1735175233507,2.5286,197.88,197.78,2.5298]
[1735175233707,2.5286,197.88,197.79,1.6205]
[1735175234206,3.34,197.89,197.79,1.6205]
[1735175234408,2.5292,197.84,197.79,4.1502]
[1735175234616,3.34,197.86,197.73,3.064]
[1735175234911,13.52165502,197.84,197.73,3.064]
[1735175235107,13.52165502,197.81,197.72,27.87340061]
[1735175235410,3.34,197.8,197.72,27.87340061]
[1735175235613,3.34,197.8,197.66,3.1462]
[1735175235804,2.5302,197.76,197.67,2.5312]
[1735175236112,13.52165502,197.78,197.66,3.1462]
[1735175236707,2.5307,197.73,197.66,5.6776]
[1735175237110,2.5307,197.73,197.66,3.1462]
[1735175237317,5.7904,197.74,197.68,2.5312]
[1735175238109,3.26,197.78,197.66,3.1462]
[1735175238309,3.26,197.78,197.68,13.52165502]
[1735175238613,3.26,197.78,197.66,3.1462]
[1735175239008,2.5303,197.75,197.69,2.531]
[1735175239812,3.26,197.78,197.67,3.26]
[1735175240010,13.52165502,197.84,197.69,13.52165502]
[1735175240211,2.5296,197.81,197.75,2.5302]
[1735175241011,2.5294,197.82,197.77,2.53]
[1735175241211,3.26,197.83,197.77,2.53]
[1735175241716,3.26,197.83,197.78,2.5298]
[1735175242108,2.5292,197.84,197.78,2.5298]
[1735175242409,2.5292,197.84,197.79,2.5298]
[1735175243013,2.529,197.85,197.79,2.5298]
[1735175243417,3.26,197.87,197.76,3.1691]
[1735175243616,2.5292,197.84,197.76,3.1691]
[1735175244415,2.5292,197.84,197.78,2.5299]
[1735175244915,3.26,197.87,197.76,3.1691]
[1735175245112,16.78165502,197.87,197.76,3.1691]
[1735175245509,2.5298,197.79,197.76,3.1691]
[1735175246224,2.5296,197.81,197.76,3.1691]
[1735175246517,16.78165502,197.87,197.76,3.1691]
[1735175246719,2.5292,197.84,197.76,3.1691]
[1735175246921,16.78165502,197.87,197.76,3.1691]
[1735175249425,2.5297,197.8,197.76,3.1691]
[1735175249827,16.78165502,197.87,197.76,3.1691]
[1735175250126,2.5296,197.81,197.76,3.1691]
[1735175250319,16.78165502,197.87,197.77,2.53]
[1735175250925,16.78165502,197.87,197.78,2.5299]
[1735175251326,3.26,197.87,197.76,3.1691]
[1735175252124,2.5293,197.83,197.77,2.53]
[1735175252424,16.78165502,197.87,197.76,3.1691]
[1735175253021,3.26,197.87,197.76,3.1691]
[1735175253225,2.529,197.86,197.8,2.5296]
[1735175253426,3.26,197.87,197.76,3.1691]
[1735175254135,2.5292,197.84,197.78,2.5298]
[1735175254633,2.5292,197.84,197.76,3.1691]
[1735175254834,2.529,197.85,197.76,3.1691]
[1735175255235,2.529,197.85,197.79,2.5297]
[1735175255942,2.5292,197.84,197.79,2.5297]
[1735175256133,3.26,197.87,197.76,5.6992]
[1735175256335,16.78165502,197.87,197.76,5.6992]
[1735175257032,2.5297,197.8,197.76,3.1691]
[1735175257235,16.78165502,197.87,197.76,3.1691]
[1735175258033,13.52165502,197.84,197.68,20.49000517]
[1735175258238,13.52165502,197.81,197.68,23.62470517]